Cogmind - Beta 10.2 *** ADVENTURER MODE // 2021.02.07 @ 22:18:22 Player: RedTie Result: Destroyed by G-34 Mercenary with Small Laser Performance ------------- Evolutions (0) 0 Regions Visited (1) 200 Robots Destroyed (3) 15 Value Destroyed (115) 115 Prototype IDs (0) 0 Alien Tech Used (0) 0 Bonus (0) 0 TOTAL SCORE: 330 Bonus ------- None Cogmind --------- Core Integrity 0/250 Matter 289/300 Energy 99/100 System Corruption 0% Temperature Cool (12) Movement Core (100) Ox1 Location -10/Materials Parts ------- > --- POWER (1) -------- (None) > --- PROPULSION (2) --- (None) > --- UTILITY (2) ------ Small Storage Unit > --- WEAPON (2) ------- (None) > --- INVENTORY (6) ---- Aluminum Leg Peak State ------------ > --- POWER ------------ Ion Engine > --- PROPULSION ------- Aluminum Leg Aluminum Leg > --- UTILITY ---------- Small Storage Unit > --- WEAPON ----------- Light Assault Rifle > --- INVENTORY -------- (None) [Rating: 5] Favorites ----------- Power Ion Engine Engine Ion Engine Propulsion Aluminum Leg Leg Aluminum Leg Utility Small Storage Unit Storage Small Storage Unit Weapon Light Assault Rifle Ballistic Gun Light Assault Rifle Build | -11 -10 ------- Run | Scr Mat Slots Evolved . | . . Power . | . . Propulsion . | . . Utility . | . . Weapon . | . . Parts Attached 7 | 5 2 Power 1 | 1 . Engine 1 | 1 . Core . | . . Reactor . | . . Propulsion 3 | 2 1 Treads . | . . Leg 3 | 2 1 Wheel . | . . Hover . | . . Flight . | . . Utility 1 | 1 . Device . | . . Storage 1 | 1 . Processor . | . . Hackware . | . . Protection . | . . Artifact . | . . Weapon 2 | 1 1 Energy Gun . | . . Energy Cannon . | . . Ballistic Gun 2 | 1 1 Ballistic Cannon . | . . Launcher . | . . Special Weapon . | . . Impact Weapon . | . . Slashing Weapon . | . . Piercing Weapon . | . . Special Melee Weapon . | . . Unidentified Prototypes . | . . Parts Lost 4 | . 4 Power 1 | . 1 Propulsion 2 | . 2 Utility . | . . Weapon 1 | . 1 Highest Loss Streak 4 | . 4 Average Slot Usage (%) 64 | . 64 Engine 12 | . 12 Leg 26 | . 26 Storage 14 | . 14 Ballistic Gun 11 | . 11 Naked Turns . | . . Heaviest Build 10 | 10 10 Greatest Support 20 | 20 20 Greatest Overweight (x) 1 | 1 1 Average Overweight (x) . | . . Largest Inventory Capacity 6 | 6 6 Average Capacity 5 | 5 6 Most Carried 3 | 2 3 Average Carried . | . . Final Capacity 6 | 6 6 Final Carried 1 | . 1 Class Distribution -------------------- 100% | Mutant Dominant Class ---------------- Mutant | -10/Materials Resources | -11 -10 ----------- Run | Scr Mat Matter Collected 264 | 205 59 Remotely . | . . Salvage Created 151 | . 151 Parts 8 | . 8 Haulers Intercepted . | . . Recyclers Shooed . | . . Parts Field Recycled . | . . Retrieved Matter . | . . Parts Self-Destructed . | . . Prevented . | . . Kills | -11 -10 ------- Run | Scr Mat Combat Hostiles Destroyed 3 | . 3 Guns 3 | . 3 Classes Destroyed 1 | . 1 Grunt 3 | . 3 Best Kill Streak 1 | . 1 Combat Bots Only 1 | . 1 Max Kills in Single Turn 1 | . 1 Gunslinging . | . . Exploded . | . . Melee . | . . Uniques/NPCs Destroyed . | . . Combat | -11 -10 -------- Run | Scr Mat Damage Taken 673 | . 673 Core 251 | . 251 Absorbed by Shields . | . . Core Remaining (%) 100 | 100 . Volleys Fired 25 | 5 20 Largest 1 | 1 1 Hottest 20 | 20 20 Shots Fired 25 | 5 20 Gun 25 | 5 20 Cannon . | . . Launcher . | . . Special . | . . Kinetic 25 | 5 20 Thermal . | . . Explosive . | . . Electromagnetic . | . . Robot Hit Streak 25 | 5 25 Robot Miss Streak . | . . Penetration Max . | . . Secondary Targets . | . . Shots Hit Robots 25 | 5 20 Core Hits 8 | 1 7 Critical Hits 1 | . 1 Critical Kills 1 | . 1 Critical Parts Destroyed . | . . Melee Attacks . | . . Impact . | . . Slashing . | . . Piercing . | . . Sneak Attacks . | . . Combat Hostiles . | . . Follow-up Attacks . | . . Damage Inflicted 190 | 39 151 Guns 190 | 39 151 Cannons . | . . Explosions . | . . Melee . | . . Ramming . | . . Kinetic 190 | 39 151 Thermal . | . . Explosive . | . . Electromagnetic . | . . Impact . | . . Slashing . | . . Piercing . | . . Highest Corruption . | . . Average Corruption . | . . Corruption Purged . | . . Overload Shots . | . . Overflow Damage . | . . Projectiles . | . . Explosions . | . . Melee . | . . Knockbacks . | . . Impact . | . . Kinetic . | . . Secondary . | . . Self-Inflicted Damage . | . . Shots . | . . Rammed . | . . Targets Rammed . | . . Kicked . | . . Crushed . | . . Highest Temperature 18 | . 18 Average Temperature 9 | . 9 Received Heat Transfer 507 | . 507 Siege Activations . | . . Robots Corrupted . | . . Combat Hostiles . | . . Parts Fried . | . . Impact Corruptions . | . . Robots Melted . | . . Combat Hostiles . | . . Parts Melted . | . . Heat Transferred . | . . Parts Sabotaged . | . . Parts Stolen . | . . Parts Stripped . | . . Power Chain Reactions . | . . Missiles Intercepted . | . . Alert | -11 -10 ------- Run | Scr Mat Peak Influence 100 | . 100 Initial . | . . Average 43 | . 61 Maximum Alert Level . | . . Low Security (%) 100 | 100 100 Level 1 . | . . Level 2 . | . . Level 3 . | . . Level 4 . | . . Level 5 . | . . High Security . | . . Max Security . | . . Squads Dispatched . | . . Investigation . | . . Extermination . | . . Reinforcement . | . . Assault . | . . Garrison . | . . Intercept . | . . Construction Impeded . | . . Haulers Reinforced . | . . Stealth | -11 -10 --------- Run | Scr Mat Distress Signals 3 | . 3 Communications Jammed . | . . Distress Signals . | . . Times Spotted 11 | . 11 Peak Tracking Total 6 | . 6 Tactical Retreats 1 | . 1 Traps | -11 -10 ------- Run | Scr Mat Traps Triggered . | . . Indirectly . | . . Trap Hack Attempts . | . . Triggered . | . . Disarmed . | . . Reprogrammed . | . . Reused . | . . Traps Extracted . | . . Installed . | . . Triggered . | . . Machines | -11 -10 ---------- Run | Scr Mat Machines Disabled . | . . Max in Single Turn . | . . Machines Sabotaged . | . . Garrisons Compromised . | . . Overloaded Fab Kills . | . . Fab Network Shutdowns . | . . Hacking | -11 -10 --------- Run | Scr Mat Machines Accessed 1 | . 1 Terminals . | . . Fabricators . | . . Repair Stations . | . . Recycling Units 1 | . 1 Scanalyzers . | . . Garrison Access . | . . Total Hacks 4 | . 4 Successful 4 | . 4 Failed . | . . Catastrophic . | . . Database Lockouts . | . . Manual . | . . Terminals . | . . Fabricators . | . . Repair Stations . | . . Recycling Units 4 | . 4 Scanalyzers . | . . Garrison Access . | . . Terminal Hacks . | . . Fabricator Hacks . | . . Repair Station Hacks . | . . Recycling Unit Hacks 4 | . 4 Recycle Component 1 | . 1 Process 1 | . 1 Report Inventory 1 | . 1 Retrieve Matter 1 | . 1 Scanalyzer . | . . Garrison Access Hacks . | . . Unauthorized Hacks . | . . Terminals . | . . Fabricators . | . . Repair Stations . | . . Recycling Units . | . . Scanalyzers . | . . Garrison Access . | . . Data Cores Recovered . | . . Used . | . . Hacking Detections 1 | . 1 Full Trace Events . | . . Feedback Events . | . . Feedback Blocked . | . . Robot Schematics Acquired . | . . Robots Built . | . . Matter . | . . Time . | . . Total Robot Build Rating . | . . Part Schematics Acquired . | . . Parts Built . | . . Matter . | . . Time . | . . Total Part Build Rating . | . . Parts Repaired . | . . Time . | . . Parts Recycled 1 | . 1 Recycled Matter 26 | . 26 Retrieved Matter . | . . Retrieved Components . | . . Parts Scanalyzed . | . . Part Schematics Acquired . | . . Parts Damaged . | . . Bothacking | -11 -10 ------------ Run | Scr Mat Used RIF Installer . | . . Robots Hacked . | . . Non-combat . | . . Combat . | . . Robot Hacks Applied . | . . Relay Couplers Released . | . . Robots Rewired . | . . Allies Hacked . | . . Hacks Repelled . | . . Allies | -11 -10 -------- Run | Scr Mat Total Allies . | . . Largest Group . | . . Highest-Rated Group . | . . Highest-Rated Ally . | . . Total Orders . | . . Ally Attacks . | . . Total Damage . | . . Kills . | . . Allies Corrupted . | . . Allies Melted . | . . Intel | -11 -10 ------- Run | Scr Mat Robot Analysis Total . | . . Derelict Logs Recovered . | . . Drone Launches . | . . Drone Recoveries . | . . Exploration | -11 -10 ------------- Run | Scr Mat Turns Passed 308 | 91 217 Spaces Moved 219 | 83 136 Core 57 | 43 14 Treads . | . . Legs 162 | 40 122 Wheels . | . . Hover . | . . Flight . | . . Fastest Speed 50 | 50 100 Average Speed 106 | 87 117 Slowest Speed 120 | 120 120 Overloaded Moves . | . . Propulsion Burnouts . | . . Robots Hopped . | . . Cave-ins Triggered . | . . Exploration Rate (%) 12 | 4 20 Regions Visited 1 Branch Regions . Pre-discovered Areas . | . . Known Exits Taken . | . . Unknown Exits Taken 1 | 1 . Scrap Searched . | . . Spaces Dug . | . . Terrain Destroyed . | . . Melee . | . . Projectile . | . . AOE . | . . Terrain Rammed . | . . Walls Destroyed . | . . Machines Disabled . | . . Actions | -11 -10 --------- Run | Scr Mat Total 275 | 97 178 Wait 16 | . 16 Move 218 | 82 136 Hop . | . . Pick Up 7 | 5 2 Fast Attach . | . . Attach 7 | 5 2 Detach 2 | . 2 Swap . | . . Drop . | . . Fire 25 | 5 20 Melee . | . . Ram . | . . Kick . | . . Crush . | . . Escape Stasis . | . . Rewire . | . . Trap . | . . Miscellaneous . | . . Route ------- -11/Scrapyard -10/Materials History --------- Turn | Location | Event 50 | -11/Scrapyard | Discovered new exit (range 16) 92 | -11/Scrapyard | Entered Materials 293 | -10/Materials | Core integrity fell below 50% 306 | -10/Materials | Core integrity fell below 20% 309 | -10/Materials | Destroyed by G-34 Mercenary with Small Laser Last Messages --------------- Aluminum Leg (24) 00183_ G-34 Mercenary destroyed. 00203_ K-01 Serf collects debris. 00220_ K-01 Serf cleans the Integration Channel. 00224_ K-01 Serf collects debris. 00242_ W-16 Scout distress signal alerts nearby ally. 00246_ K-01 Serf collects debris. 00264_ G-34 Mercenary destroyed. 00264_ K-01 Serf collects debris. 00272_ Lgt. Assault Rifle destroyed. 00274_ K-01 Serf collects debris. 00276_ K-01 Serf destroyed. 00278_ Ion Engine destroyed. 00282_ R-06 Scavenger collects Aluminum Leg. 00286_ Aluminum Leg destroyed. 00287_ R-06 Scavenger collects Aluminum Leg. 00291_ R-06 Scavenger collects Med. Matter Pod. 00295_ R-06 Scavenger collects Wheel. 00295_ Aluminum Leg destroyed. 00299_ R-06 Scavenger collects Wheel. Map ----- +----------------------------------------------------+ | ?????????????????????????#######?????????????????? | | ?????????????????????????# ?????????????????? | | ????????????##########???# ?????????????????? | | ????????????# ##### ""??????????????????? | | ??????#######! "" # # R??????????????????? | | ??????# %+!= Y" # #? "???????????????????? | | ??????# ###* "" # #? ???????????????????? | | ??????+ #?# + ###+######+####?????????? | | ??????# #?# """ # #?????????? | | ??????# #?# """ # +?????????? | | ?????? #?# """ # #?????????? | | ????? #?# # #######?????????? | | ???? #?########## #???????????????? | | ??? """ #??????????# #???????????????? | | ?? """ ???????????# " #???????????????? | | ? """ ???????????# """ #???????????????? | | ??? ???????????#u """ #???????????????? | | ? ???? ???????????# """ #???????????????? | | ???????" ???????????# "" #???????????????? | | ???????" ???????????# """ #???????????????? | | ???????? ???????????# "" #???????????????? | | ?????????????????????# "" #???????????????? | | ?????????????????????# " #???????????????? | | ?????????????????????# g #???????????????? | | ????????????????????## a g #???????????????? | | ????????????????????# w @ ########### #?? | | ????????????????????# g % % #?? | | ????????????????????# #?? | | ????????????????????# +?? | | ????????????????????# g ###+############## #?? | | ????????????????????# # ?????????????????? | | ????????????????????# # ]????????????????? | | ????????????????????# # #???????????????? | | ????????????????????# # #???????????????? | | ????????????????????# #!* #???????????????? | | ????????????????????# #* #???????????????? | | ????????????????????# ########???????????????? | | ????????????????????# #??????????????????????? | | ???????????????????? ??????????????????????? | | ??????????????????? ??????????????????????? | | ??????????????????? ?????????????????????? | | ???????????????????#######+#?????????????????????? | | ?????????????????????????????????????????????????? | | ?????????????????????????????????????????????????? | | ?????????????????????????????????????????????????? | | ?????????????????????????????????????????????????? | | ?????????????????????????????????????????????????? | | ?????????????????????????????????????????????????? | | ?????????????????????????????????????????????????? | | ?????????????????????????????????????????????????? | +----------------------------------------------------+ Best States ------------- Heat Dissipation 25 Energy Generation 10 Energy Capacity 250 Matter Stores 300 Matter Capacity 300 Sight Range 16 Terrain Scan Density 10 Resistance: KI 20 Resistance: TH 20 Resistance: EX 20 Resistance: EM 20 Resistance: I 20 Resistance: S 20 Resistance: P 20 Evasion (%) 50 Offensive Hacking 10 Item Schematics ----------------- None Robot Schematics ------------------ None Fabricated ------------ Nothing Alien Tech Used ----------------- None Achievements -------------- None Challenges ------------ None Game ------ Seed TerrabombThunderMantle Manual? 0 Play Time 00:17:19 Cumulative 12.4 hours Start 2021.02.07 @ 21:59:39 End 2021.02.07 @ 22:18:22 Sessions 1 Manual Loads 0 Difficulty Adventurer Special Mode None Game No. 13 Rogue 7 Adventurer 6 Explorer 0 Win Type - Total 0 Types 0/0/0/0/0/0/0/0/0 Lore% 5 Gallery% 16 Achievement% 12 Wizard Run 0 Options --------- ASCII 0 Keyboard 1 Movement Vi Keybinds 0 Fullscreen 1 Font 18/SmallcapsGlow Map View 76x50 Tactical HUD 1 Map Filters NONE Filters NONE Steam 1 RUN: e69634d2-83b7-4b78-9ddc-12e88efc0ac0